[Event "*** SCC Grand Prix: Titled Tuesday Blitz"]
[Site "Chess.com"]
[Date "2020.07.14"]
[Round "2"]
[White "MikeSailer"]
[Black "sasko1234"]
[Result "1/2-1/2"]
[WhiteElo "2141"]
[BlackElo "2400"]
[TimeControl "180+1"]
[EndTime "10:19:17 PDT"]
[Termination "Game drawn by repetition"]

1. d4 {[%clk 0:03:00.9]} 1... Nf6 {[%clk 0:02:59.4]} 2. Nf3 {[%clk 0:03:00.4]}
2... d6 {[%clk 0:02:59.6]} 3. Bf4 {[%clk 0:03:00.5]} 3... Bg4 {[%clk 0:02:59.1]}
4. e3 {[%clk 0:03:00.6]} 4... Nbd7 {[%clk 0:02:58.7]} 5. Be2 {[%clk 0:03:00.7]}
5... c6 {[%clk 0:02:59.1]} 6. h3 {[%clk 0:03:00.6]} 6... Bh5 {[%clk 0:02:58.7]}
7. c4 {[%clk 0:02:59.8]} 7... e6 {[%clk 0:02:57.6]} 8. Nc3 {[%clk 0:02:58.5]}
8... Be7 {[%clk 0:02:57]} 9. O-O {[%clk 0:02:57]} 9... O-O {[%clk 0:02:56.2]}
10. b4 {[%clk 0:02:43.8]} 10... d5 {[%clk 0:02:48.1]} 11. c5 {[%clk 0:02:41.1]}
11... Bg6 {[%clk 0:02:42.2]} 12. b5 {[%clk 0:02:34.8]} 12... Ne4 {[%clk
0:02:32.8]} 13. Nxe4 {[%clk 0:02:34]} 13... dxe4 {[%clk 0:02:27.3]} 14. Nd2
{[%clk 0:02:20.6]} 14... e5 {[%clk 0:02:21.1]} 15. Bh2 {[%clk 0:02:10.6]} 15...
exd4 {[%clk 0:02:19.4]} 16. exd4 {[%clk 0:02:10.4]} 16... Nf6 {[%clk 0:02:01.5]}
17. bxc6 {[%clk 0:02:08.7]} 17... bxc6 {[%clk 0:02:01.1]} 18. Nc4 {[%clk
0:02:06.8]} 18... Nd5 {[%clk 0:01:54.1]} 19. Qb3 {[%clk 0:01:27.1]} 19... Bg5
{[%clk 0:01:10.2]} 20. Ne5 {[%clk 0:01:07.8]} 20... Qf6 {[%clk 0:01:00.2]} 21.
Nd7 {[%clk 0:01:01.6]} 21... Qxd4 {[%clk 0:01:00]} 22. Nxf8 {[%clk 0:01:02]}
22... Rxf8 {[%clk 0:01:00]} 23. Bd6 {[%clk 0:01:00.6]} 23... Nf4 {[%clk
0:00:46.5]} 24. Bc4 {[%clk 0:00:53.4]} 24... Re8 {[%clk 0:00:36.3]} 25. Rad1
{[%clk 0:00:50.4]} 25... Qf6 {[%clk 0:00:34.9]} 26. Bxf4 {[%clk 0:00:37.8]}
26... Bxf4 {[%clk 0:00:27.2]} 27. Rd7 {[%clk 0:00:27.1]} 27... a5 {[%clk
0:00:20.3]} 28. Rfd1 {[%clk 0:00:26.9]} 28... h5 {[%clk 0:00:19.6]} 29. Qb6
{[%clk 0:00:19.9]} 29... e3 {[%clk 0:00:18.7]} 30. fxe3 {[%clk 0:00:17.8]} 30...
Bxe3+ {[%clk 0:00:18.4]} 31. Kh1 {[%clk 0:00:18.5]} 31... Re5 {[%clk 0:00:13.6]}
32. Qd8+ {[%clk 0:00:17.2]} 32... Qxd8 {[%clk 0:00:12.5]} 33. Rxd8+ {[%clk
0:00:18]} 33... Kh7 {[%clk 0:00:13.3]} 34. R8d7 {[%clk 0:00:12.5]} 34... f6
{[%clk 0:00:10.6]} 35. Bd3 {[%clk 0:00:10.1]} 35... Rxc5 {[%clk 0:00:08.5]} 36.
Bxg6+ {[%clk 0:00:10]} 36... Kxg6 {[%clk 0:00:09.2]} 37. Re7 {[%clk 0:00:07.4]}
37... Bf4 {[%clk 0:00:07.2]} 38. g4 {[%clk 0:00:07.6]} 38... hxg4 {[%clk
0:00:06.6]} 39. hxg4 {[%clk 0:00:08.1]} 39... Rc2 {[%clk 0:00:07.2]} 40. Rdd7
{[%clk 0:00:06.6]} 40... Bh6 {[%clk 0:00:07.2]} 41. Re4 {[%clk 0:00:05.3]} 41...
Rxa2 {[%clk 0:00:06.4]} 42. Rc4 {[%clk 0:00:05.5]} 42... a4 {[%clk 0:00:03.7]}
43. Rxc6 {[%clk 0:00:05]} 43... a3 {[%clk 0:00:04.1]} 44. Ra6 {[%clk 0:00:04.9]}
44... Ra1+ {[%clk 0:00:03.2]} 45. Kg2 {[%clk 0:00:05.3]} 45... Bc1 {[%clk
0:00:03.5]} 46. Raa7 {[%clk 0:00:05]} 46... Bh6 {[%clk 0:00:02.8]} 47. Rd3
{[%clk 0:00:03.2]} 47... Ra2+ {[%clk 0:00:02.6]} 48. Kf3 {[%clk 0:00:03]} 48...
Bc1 {[%clk 0:00:02.3]} 49. Rdd7 {[%clk 0:00:03.5]} 49... Bh6 {[%clk 0:00:01.5]}
50. Rd3 {[%clk 0:00:03.7]} 50... Rb2 {[%clk 0:00:02.1]} 51. Raxa3 {[%clk
0:00:03]} 51... Rb4 {[%clk 0:00:02.8]} 52. Ra7 {[%clk 0:00:02.3]} 52... Rb5
{[%clk 0:00:03]} 53. Rdd7 {[%clk 0:00:02.3]} 53... Rb3+ {[%clk 0:00:03]} 54. Ke4
{[%clk 0:00:02.1]} 54... Rb4+ {[%clk 0:00:03.3]} 55. Kf3 {[%clk 0:00:02.5]}
55... Rb3+ {[%clk 0:00:03.8]} 56. Kg2 {[%clk 0:00:03.3]} 56... Rb2+ {[%clk
0:00:03.3]} 57. Kf3 {[%clk 0:00:03.9]} 57... Rb3+ {[%clk 0:00:03.6]} 1/2-1/2

[Event "*** SCC Grand Prix: Titled Tuesday Blitz"]
[Site "Chess.com"]
[Date "2020.07.14"]
[Round "2"]
[White "sergoy"]
[Black "OhanyanEminChess"]
[Result "1-0"]
[WhiteElo "2805"]
[BlackElo "2504"]
[TimeControl "180+1"]
[EndTime "10:19:20 PDT"]
[Termination "sergoy won on time"]

1. d4 {[%clk 0:03:00.3]} 1... Nf6 {[%clk 0:02:08.6]} 2. c4 {[%clk 0:02:57.7]}
2... c5 {[%clk 0:02:08.4]} 3. d5 {[%clk 0:02:58.2]} 3... b5 {[%clk 0:02:07.2]}
4. cxb5 {[%clk 0:02:59.1]} 4... a6 {[%clk 0:02:07.5]} 5. bxa6 {[%clk 0:02:59.7]}
5... g6 {[%clk 0:02:07.8]} 6. Nc3 {[%clk 0:02:58.8]} 6... Bg7 {[%clk 0:02:08.3]}
7. e4 {[%clk 0:02:58.9]} 7... O-O {[%clk 0:02:08.9]} 8. Nf3 {[%clk 0:02:59.3]}
8... d6 {[%clk 0:02:09.5]} 9. Be2 {[%clk 0:02:58.5]} 9... Qa5 {[%clk 0:02:09.7]}
10. Bd2 {[%clk 0:02:58.2]} 10... Bxa6 {[%clk 0:02:09.6]} 11. O-O {[%clk
0:02:58]} 11... Nbd7 {[%clk 0:02:03.5]} 12. h3 {[%clk 0:02:51.4]} 12... Rfb8
{[%clk 0:02:03.1]} 13. b3 {[%clk 0:02:49.7]} 13... Ne8 {[%clk 0:02:02.4]} 14.
Bxa6 {[%clk 0:02:30.1]} 14... Qxa6 {[%clk 0:02:03.3]} 15. Qc2 {[%clk 0:02:28.8]}
15... Nc7 {[%clk 0:02:00.4]} 16. a4 {[%clk 0:02:28.5]} 16... Qb7 {[%clk
0:01:29.7]} 17. Rab1 {[%clk 0:02:26.7]} 17... Na6 {[%clk 0:01:29.6]} 18. Nb5
{[%clk 0:02:26]} 18... Nb6 {[%clk 0:01:21]} 19. Bc3 {[%clk 0:02:20.7]} 19...
Bxc3 {[%clk 0:01:16.1]} 20. Qxc3 {[%clk 0:02:21.6]} 20... Nb4 {[%clk 0:01:16.7]}
21. Qd2 {[%clk 0:02:12.5]} 21... Nc8 {[%clk 0:01:12.1]} 22. Rbd1 {[%clk
0:02:05.7]} 22... Na7 {[%clk 0:01:11.6]} 23. Nxa7 {[%clk 0:01:53.9]} 23... Rxa7
{[%clk 0:01:08.7]} 24. e5 {[%clk 0:01:54.8]} 24... Rd8 {[%clk 0:00:49.5]} 25. e6
{[%clk 0:01:53]} 25... f6 {[%clk 0:00:49.3]} 26. Rfe1 {[%clk 0:01:45.9]} 26...
Na6 {[%clk 0:00:46]} 27. Re3 {[%clk 0:01:44.9]} 27... Qb4 {[%clk 0:00:44.9]} 28.
Qe2 {[%clk 0:01:40.2]} 28... Nc7 {[%clk 0:00:43.1]} 29. h4 {[%clk 0:01:33.6]}
29... h5 {[%clk 0:00:32.8]} 30. Qc2 {[%clk 0:01:30.2]} 30... Kh7 {[%clk
0:00:31]} 31. Re4 {[%clk 0:01:30.5]} 31... Qb7 {[%clk 0:00:28]} 32. Qd3 {[%clk
0:01:28.3]} 32... Rb8 {[%clk 0:00:26.7]} 33. Re3 {[%clk 0:01:28.5]} 33... Qb4
{[%clk 0:00:23.4]} 34. Nd2 {[%clk 0:01:23]} 34... Qg4 {[%clk 0:00:20.4]} 35. Nf3
{[%clk 0:01:13]} 35... Rb4 {[%clk 0:00:19.3]} 36. Qc2 {[%clk 0:01:00.9]} 36...
Ne8 {[%clk 0:00:15.3]} 37. Rde1 {[%clk 0:00:58.8]} 37... Ng7 {[%clk 0:00:13.8]}
38. Re4 {[%clk 0:00:55.4]} 38... Qf5 {[%clk 0:00:14.1]} 39. Qb1 {[%clk
0:00:33.6]} 39... Rxe4 {[%clk 0:00:07]} 40. Qxe4 {[%clk 0:00:33]} 40... Qxe4
{[%clk 0:00:07.1]} 41. Rxe4 {[%clk 0:00:33.9]} 41... Nf5 {[%clk 0:00:08]} 42.
Nd2 {[%clk 0:00:29]} 42... Kg7 {[%clk 0:00:04.6]} 43. Rc4 {[%clk 0:00:23.8]}
43... Kf8 {[%clk 0:00:03.7]} 44. Rc3 {[%clk 0:00:20.3]} 44... Nd4 {[%clk
0:00:03.6]} 45. Kf1 {[%clk 0:00:20.5]} 45... Rb7 {[%clk 0:00:03.1]} 46. Rg3
{[%clk 0:00:20.1]} 46... Kg7 {[%clk 0:00:02.9]} 47. Ke1 {[%clk 0:00:20.4]} 47...
Nf5 {[%clk 0:00:03.1]} 48. Rh3 {[%clk 0:00:20.7]} 48... Rb4 {[%clk 0:00:02.8]}
49. Nc4 {[%clk 0:00:21.1]} 49... Nd4 {[%clk 0:00:02.4]} 50. Na5 {[%clk
0:00:21.5]} 50... Kf8 {[%clk 0:00:01.5]} 51. Kd2 {[%clk 0:00:21.2]} 51... Rb6
{[%clk 0:00:01.5]} 52. Kc3 {[%clk 0:00:20.4]} 52... Ra6 {[%clk 0:00:02]} 53. Nc4
{[%clk 0:00:20.5]} 53... Nf5 {[%clk 0:00:02.3]} 54. f3 {[%clk 0:00:20]} 54...
Nd4 {[%clk 0:00:02.5]} 55. g4 {[%clk 0:00:20.4]} 55... Ne2+ {[%clk 0:00:02.7]}
56. Kd2 {[%clk 0:00:19.7]} 56... Nf4 {[%clk 0:00:03.2]} 57. Rh1 {[%clk
0:00:19.7]} 57... Nxd5 {[%clk 0:00:03.8]} 58. gxh5 {[%clk 0:00:19.6]} 58... gxh5
{[%clk 0:00:04.7]} 59. Rg1 {[%clk 0:00:19.8]} 59... Nf4 {[%clk 0:00:04.6]} 60.
Re1 {[%clk 0:00:20.1]} 60... Nd5 {[%clk 0:00:04.6]} 61. a5 {[%clk 0:00:18.8]}
61... Nb4 {[%clk 0:00:04.1]} 62. Ra1 {[%clk 0:00:15.5]} 62... Nc6 {[%clk
0:00:03.5]} 63. f4 {[%clk 0:00:13.6]} 63... d5 {[%clk 0:00:03.9]} 64. Nb6 {[%clk
0:00:14]} 64... Rxa5 {[%clk 0:00:02.1]} 65. Nd7+ {[%clk 0:00:10]} 1-0

[Event "*** SCC Grand Prix: Titled Tuesday Blitz"]
[Site "Chess.com"]
[Date "2020.07.14"]
[Round "2"]
[White "mfwagnerpeixoto"]
[Black "MuradNuri"]
[Result "0-1"]
[WhiteElo "2239"]
[BlackElo "2446"]
[TimeControl "180+1"]
[EndTime "10:19:23 PDT"]
[Termination "MuradNuri won on time"]

1. e4 {[%clk 0:03:00.9]} 1... c5 {[%clk 0:02:57.5]} 2. c3 {[%clk 0:03:00.5]}
2... e6 {[%clk 0:02:56.4]} 3. Nf3 {[%clk 0:02:59.6]} 3... d5 {[%clk 0:02:57.3]}
4. exd5 {[%clk 0:03:00.1]} 4... exd5 {[%clk 0:02:57.6]} 5. d4 {[%clk 0:03:01]}
5... Bd6 {[%clk 0:02:52.3]} 6. Bb5+ {[%clk 0:02:54.6]} 6... Nc6 {[%clk
0:02:51.4]} 7. O-O {[%clk 0:02:53.5]} 7... Ne7 {[%clk 0:02:47.9]} 8. Nbd2 {[%clk
0:02:48.5]} 8... O-O {[%clk 0:02:47.8]} 9. dxc5 {[%clk 0:02:48.6]} 9... Bxc5
{[%clk 0:02:48.7]} 10. Nb3 {[%clk 0:02:48.9]} 10... Bb6 {[%clk 0:02:49.6]} 11.
Bg5 {[%clk 0:02:47.7]} 11... Qd6 {[%clk 0:02:46.7]} 12. Re1 {[%clk 0:02:28.3]}
12... Bg4 {[%clk 0:02:36.5]} 13. Bh4 {[%clk 0:02:17]} 13... Nf5 {[%clk
0:02:35.8]} 14. Bg3 {[%clk 0:02:03]} 14... Nxg3 {[%clk 0:02:34.9]} 15. hxg3
{[%clk 0:02:03.9]} 15... Qxg3 {[%clk 0:02:35.2]} 16. Nbd4 {[%clk 0:02:00.2]}
16... Qd6 {[%clk 0:02:27.2]} 17. Qd3 {[%clk 0:01:52.8]} 17... Rad8 {[%clk
0:02:21.2]} 18. Ba4 {[%clk 0:01:35.5]} 18... Bc8 {[%clk 0:02:17.9]} 19. Bc2
{[%clk 0:01:34.7]} 19... g6 {[%clk 0:02:17.2]} 20. Qe3 {[%clk 0:01:20.6]} 20...
Qf6 {[%clk 0:02:00.4]} 21. Qh6 {[%clk 0:01:12.5]} 21... Qg7 {[%clk 0:02:00.2]}
22. Qxg7+ {[%clk 0:01:08.8]} 22... Kxg7 {[%clk 0:02:00.1]} 23. Nxc6 {[%clk
0:01:08.4]} 23... bxc6 {[%clk 0:02:01]} 24. Re7 {[%clk 0:01:05.1]} 24... Rfe8
{[%clk 0:01:59.4]} 25. Rae1 {[%clk 0:01:01.5]} 25... Rxe7 {[%clk 0:01:59.7]} 26.
Rxe7 {[%clk 0:01:00.5]} 26... Kf6 {[%clk 0:02:00.6]} 27. Re1 {[%clk 0:00:57.9]}
27... c5 {[%clk 0:02:00.8]} 28. Ne5 {[%clk 0:00:47.2]} 28... h5 {[%clk
0:01:55.2]} 29. Nd3 {[%clk 0:00:37.1]} 29... Bf5 {[%clk 0:01:45.7]} 30. Bb1
{[%clk 0:00:34.2]} 30... d4 {[%clk 0:01:44.4]} 31. c4 {[%clk 0:00:32.5]} 31...
g5 {[%clk 0:01:39.7]} 32. b3 {[%clk 0:00:27.3]} 32... h4 {[%clk 0:01:34]} 33. f3
{[%clk 0:00:26.7]} 33... Rh8 {[%clk 0:01:25.5]} 34. Nf2 {[%clk 0:00:24.5]} 34...
Bxb1 {[%clk 0:01:19.9]} 35. Rxb1 {[%clk 0:00:25.4]} 35... Re8 {[%clk 0:01:20.4]}
36. Kf1 {[%clk 0:00:24.5]} 36... Kg6 {[%clk 0:01:16]} 37. Ne4 {[%clk 0:00:20.7]}
37... f5 {[%clk 0:01:15.3]} 38. Nf2 {[%clk 0:00:19.2]} 38... Re3 {[%clk
0:01:15.1]} 39. Re1 {[%clk 0:00:18.2]} 39... Ba5 {[%clk 0:01:10.2]} 40. Rxe3
{[%clk 0:00:16.5]} 40... dxe3 {[%clk 0:01:11.1]} 41. Nd3 {[%clk 0:00:17]} 41...
Bb6 {[%clk 0:01:01.8]} 42. Ke2 {[%clk 0:00:16.9]} 42... f4 {[%clk 0:01:02.1]}
43. Ne5+ {[%clk 0:00:16.4]} 43... Kf5 {[%clk 0:01:02.6]} 44. Ng4 {[%clk
0:00:15.6]} 44... Ba5 {[%clk 0:01:02.9]} 45. Kd3 {[%clk 0:00:15.3]} 45... Bb4
{[%clk 0:01:00.9]} 46. Nh6+ {[%clk 0:00:15.2]} 46... Kg6 {[%clk 0:00:59.5]} 47.
Ng4 {[%clk 0:00:16.1]} 47... h3 {[%clk 0:00:58.4]} 48. gxh3 {[%clk 0:00:15.6]}
48... Kh5 {[%clk 0:00:59.3]} 49. Ke2 {[%clk 0:00:13.7]} 49... Kh4 {[%clk
0:00:59.4]} 50. Ne5 {[%clk 0:00:14.4]} 50... Kxh3 {[%clk 0:00:57.9]} 51. Ng4
{[%clk 0:00:15.3]} 51... Kg3 {[%clk 0:00:57.7]} 52. Ne5 {[%clk 0:00:14.9]} 52...
Bc3 {[%clk 0:00:55.6]} 53. Nd3 {[%clk 0:00:13.3]} 53... g4 {[%clk 0:00:45.4]}
54. fxg4 {[%clk 0:00:11.1]} 54... Bd4 {[%clk 0:00:42.8]} 55. Ne1 {[%clk
0:00:11]} 55... Kxg4 {[%clk 0:00:41.3]} 56. Nf3 {[%clk 0:00:11]} 56... Bc3
{[%clk 0:00:41.9]} 57. Nh2+ {[%clk 0:00:08.7]} 57... Kg3 {[%clk 0:00:42.4]} 58.
Nf3 {[%clk 0:00:09.6]} 58... Bf6 {[%clk 0:00:40.1]} 59. Ne1 {[%clk 0:00:08.6]}
59... Bd4 {[%clk 0:00:38.2]} 60. Nf3 {[%clk 0:00:08.7]} 60... Bc3 {[%clk
0:00:39.1]} 61. Ng5 {[%clk 0:00:07.9]} 61... Kg2 {[%clk 0:00:39.6]} 62. Nf3
{[%clk 0:00:07.7]} 62... Bf6 {[%clk 0:00:40]} 63. Ne1+ {[%clk 0:00:07.2]} 63...
Kg3 {[%clk 0:00:39]} 64. Nf3 {[%clk 0:00:08.1]} 64... a5 {[%clk 0:00:37.4]} 65.
Ne1 {[%clk 0:00:07.7]} 65... Bc3 {[%clk 0:00:36.5]} 66. Nf3 {[%clk 0:00:07.7]}
66... Kg4 {[%clk 0:00:37.4]} 67. Nh2+ {[%clk 0:00:07]} 67... Kh3 {[%clk
0:00:34.9]} 68. Nf3 {[%clk 0:00:07.9]} 68... Kg2 {[%clk 0:00:34.4]} 69. Nh4+
{[%clk 0:00:07.5]} 69... Kg3 {[%clk 0:00:33]} 70. Nf3 {[%clk 0:00:08.4]} 70...
Kg4 {[%clk 0:00:31.7]} 71. Nh2+ {[%clk 0:00:07.6]} 71... Kf5 {[%clk 0:00:32]}
72. Nf3 {[%clk 0:00:08.5]} 72... Ke4 {[%clk 0:00:32.9]} 73. Ng5+ {[%clk
0:00:08.1]} 73... Kf5 {[%clk 0:00:32.9]} 74. Nf3 {[%clk 0:00:08.1]} 74... Bf6
{[%clk 0:00:33.5]} 75. Ne1 {[%clk 0:00:07.5]} 75... Ke5 {[%clk 0:00:34]} 76.
Nf3+ {[%clk 0:00:07.2]} 76... Ke4 {[%clk 0:00:34.2]} 77. Ne1 {[%clk 0:00:06.6]}
77... Kd4 {[%clk 0:00:32.9]} 78. Nd3 {[%clk 0:00:02.7]} 78... f3+ {[%clk
0:00:32.7]} 0-1

[Event "*** SCC Grand Prix: Titled Tuesday Blitz"]
[Site "Chess.com"]
[Date "2020.07.14"]
[Round "2"]
[White "2nd_life"]
[Black "VovenRogel"]
[Result "1/2-1/2"]
[WhiteElo "2486"]
[BlackElo "2721"]
[TimeControl "180+1"]
[EndTime "10:19:24 PDT"]
[Termination "Game drawn by stalemate"]

1. e4 {[%clk 0:03:00.9]} 1... c6 {[%clk 0:02:45.8]} 2. d4 {[%clk 0:03:00.3]}
2... d5 {[%clk 0:02:44.9]} 3. e5 {[%clk 0:03:00]} 3... Bf5 {[%clk 0:02:44.1]} 4.
h4 {[%clk 0:02:59.6]} 4... h5 {[%clk 0:02:42.7]} 5. Bd3 {[%clk 0:02:59.2]} 5...
Bxd3 {[%clk 0:02:40.2]} 6. Qxd3 {[%clk 0:03:00.1]} 6... Qa5+ {[%clk 0:02:39.6]}
7. Nd2 {[%clk 0:02:21.6]} 7... e6 {[%clk 0:02:38.6]} 8. Nf3 {[%clk 0:02:15.3]}
8... Nh6 {[%clk 0:02:37.4]} 9. O-O {[%clk 0:01:59.9]} 9... Nf5 {[%clk
0:02:35.4]} 10. b3 {[%clk 0:01:56.1]} 10... Qa6 {[%clk 0:02:33.4]} 11. c4 {[%clk
0:01:53.8]} 11... Be7 {[%clk 0:02:33.1]} 12. g3 {[%clk 0:01:52.3]} 12... Nd7
{[%clk 0:02:32.4]} 13. a4 {[%clk 0:01:30]} 13... Rd8 {[%clk 0:02:30.4]} 14. Ba3
{[%clk 0:01:26.2]} 14... Bxa3 {[%clk 0:02:24.8]} 15. Rxa3 {[%clk 0:01:25.8]}
15... O-O {[%clk 0:02:17.9]} 16. b4 {[%clk 0:01:13]} 16... dxc4 {[%clk
0:02:15.8]} 17. Qxc4 {[%clk 0:01:12.1]} 17... Qxc4 {[%clk 0:02:08.6]} 18. Nxc4
{[%clk 0:01:12]} 18... Nb6 {[%clk 0:02:09.5]} 19. Na5 {[%clk 0:00:46.1]} 19...
Nxd4 {[%clk 0:02:08.7]} 20. Nxb7 {[%clk 0:00:44.7]} 20... Nxf3+ {[%clk
0:02:06.4]} 21. Rxf3 {[%clk 0:00:45.6]} 21... Rd4 {[%clk 0:02:06.6]} 22. b5
{[%clk 0:00:42.7]} 22... cxb5 {[%clk 0:02:01.1]} 23. axb5 {[%clk 0:00:43.6]}
23... Rd5 {[%clk 0:02:02]} 24. Ra1 {[%clk 0:00:36.8]} 24... Nc8 {[%clk
0:01:29.5]} 25. Nd6 {[%clk 0:00:36.1]} 25... Nxd6 {[%clk 0:01:10.8]} 26. exd6
{[%clk 0:00:36]} 26... Rxd6 {[%clk 0:01:11.7]} 27. Rxa7 {[%clk 0:00:35.4]} 27...
Rb6 {[%clk 0:01:12.1]} 28. Rb3 {[%clk 0:00:30.1]} 28... Rfb8 {[%clk 0:01:10.6]}
29. Ra5 {[%clk 0:00:29.3]} 29... f6 {[%clk 0:01:08.7]} 30. Kg2 {[%clk
0:00:29.4]} 30... e5 {[%clk 0:01:04.7]} 31. Kf3 {[%clk 0:00:29.7]} 31... Kf7
{[%clk 0:01:03.2]} 32. Ke3 {[%clk 0:00:25]} 32... Ke6 {[%clk 0:01:01.7]} 33. f4
{[%clk 0:00:24.6]} 33... Kf5 {[%clk 0:00:56.9]} 34. fxe5 {[%clk 0:00:23.8]}
34... fxe5 {[%clk 0:00:57.8]} 35. Kf3 {[%clk 0:00:20.1]} 35... R8b7 {[%clk
0:00:57.8]} 36. Rb4 {[%clk 0:00:18.2]} 36... g6 {[%clk 0:00:57]} 37. Rb3 {[%clk
0:00:16.5]} 37... Rd6 {[%clk 0:00:54.1]} 38. Ra8 {[%clk 0:00:14.3]} 38... Rd5
{[%clk 0:00:49.3]} 39. Rf8+ {[%clk 0:00:12.5]} 39... Ke6 {[%clk 0:00:49.3]} 40.
Rg8 {[%clk 0:00:10.7]} 40... Kf6 {[%clk 0:00:43.3]} 41. g4 {[%clk 0:00:07.8]}
41... hxg4+ {[%clk 0:00:40.8]} 42. Kxg4 {[%clk 0:00:07.7]} 42... Kf7 {[%clk
0:00:33.3]} 43. Rc8 {[%clk 0:00:07.3]} 43... Rdxb5 {[%clk 0:00:29.6]} 44. Rxb5
{[%clk 0:00:08.2]} 44... Rxb5 {[%clk 0:00:28.9]} 45. Rc7+ {[%clk 0:00:06.5]}
45... Kf6 {[%clk 0:00:27.9]} 46. Rc6+ {[%clk 0:00:06.6]} 46... Kg7 {[%clk
0:00:27.6]} 47. Kg5 {[%clk 0:00:06.5]} 47... e4+ {[%clk 0:00:24.1]} 48. Kf4
{[%clk 0:00:06.7]} 48... Rb4 {[%clk 0:00:21.9]} 49. Kg5 {[%clk 0:00:04.7]} 49...
Rb5+ {[%clk 0:00:21.5]} 50. Kf4 {[%clk 0:00:04.8]} 50... Rh5 {[%clk 0:00:22.4]}
51. Kg4 {[%clk 0:00:04]} 51... Re5 {[%clk 0:00:20.5]} 52. Kf4 {[%clk 0:00:02.5]}
52... Re8 {[%clk 0:00:20.1]} 53. Ke3 {[%clk 0:00:02.6]} 53... Kh6 {[%clk
0:00:19.6]} 54. Rc5 {[%clk 0:00:02.9]} 54... Re7 {[%clk 0:00:19.1]} 55. Rd5
{[%clk 0:00:03.3]} 55... Re6 {[%clk 0:00:18.7]} 56. Rc5 {[%clk 0:00:03.7]} 56...
Re8 {[%clk 0:00:18.1]} 57. Rd5 {[%clk 0:00:04.1]} 57... Ra8 {[%clk 0:00:17.1]}
58. Kxe4 {[%clk 0:00:03.7]} 58... Ra4+ {[%clk 0:00:16.8]} 59. Kf3 {[%clk
0:00:04.6]} 59... Rxh4 {[%clk 0:00:16.4]} 60. Kg2 {[%clk 0:00:05.2]} 60... Rh5
{[%clk 0:00:16.4]} 61. Rxh5+ {[%clk 0:00:03.4]} 61... Kxh5 {[%clk 0:00:17.3]}
62. Kh3 {[%clk 0:00:03.8]} 62... Kg5 {[%clk 0:00:17.2]} 63. Kg3 {[%clk
0:00:04.7]} 63... Kf5 {[%clk 0:00:17.2]} 64. Kf3 {[%clk 0:00:05.1]} 64... Kg5
{[%clk 0:00:17.4]} 65. Kg3 {[%clk 0:00:05.6]} 65... Kh6 {[%clk 0:00:16.4]} 66.
Kh4 {[%clk 0:00:05.8]} 66... Kh7 {[%clk 0:00:14.9]} 67. Kg4 {[%clk 0:00:05.5]}
67... Kg7 {[%clk 0:00:15.8]} 68. Kg5 {[%clk 0:00:05.8]} 68... Kf7 {[%clk
0:00:15.7]} 69. Kg4 {[%clk 0:00:06.4]} 69... Kf6 {[%clk 0:00:16.6]} 70. Kf4
{[%clk 0:00:06.8]} 70... g5+ {[%clk 0:00:17.5]} 71. Kg4 {[%clk 0:00:07.3]} 71...
Kg6 {[%clk 0:00:18.4]} 72. Kg3 {[%clk 0:00:07.7]} 72... Kf5 {[%clk 0:00:19.3]}
73. Kf3 {[%clk 0:00:08.2]} 73... g4+ {[%clk 0:00:20.2]} 74. Kg3 {[%clk
0:00:08.6]} 74... Kg5 {[%clk 0:00:21.1]} 75. Kg2 {[%clk 0:00:09.1]} 75... Kf4
{[%clk 0:00:22]} 76. Kf2 {[%clk 0:00:09.5]} 76... g3+ {[%clk 0:00:22.9]} 77. Kg2
{[%clk 0:00:10]} 77... Kg4 {[%clk 0:00:22.8]} 78. Kg1 {[%clk 0:00:10.3]} 78...
Kf3 {[%clk 0:00:23.7]} 79. Kf1 {[%clk 0:00:10.5]} 79... g2+ {[%clk 0:00:24.6]}
80. Kg1 {[%clk 0:00:10.8]} 80... Kg3 {[%clk 0:00:25.5]} 1/2-1/2